[Event "Late-Titled-Tuesday-Blitz-May-14-2024"]
[Site "Chess.com"]
[Date "2024.05.14"]
[Round "3"]
[White "invisible_s0ul"]
[Black "Dexter_Dyke"]
[Result "0-1"]
[WhiteElo "2360"]
[BlackElo "2595"]
[TimeControl "180+1"]
[EndTime "14:29:45 PDT"]
[Termination "Dexter_Dyke won by resignation"]

1. c4 {[%clk 0:03:00.9]} 1... f5 {[%clk 0:02:59.5]} 2. d4 {[%clk 0:02:57.7]}
2... Nf6 {[%clk 0:02:59.8]} 3. Nc3 {[%clk 0:02:57.5]} 3... g6 {[%clk 0:03:00]}
4. g3 {[%clk 0:02:57.8]} 4... Bg7 {[%clk 0:03:00.1]} 5. Bg2 {[%clk 0:02:58.3]}
5... O-O {[%clk 0:03:00.9]} 6. e3 {[%clk 0:02:57.6]} 6... d6 {[%clk 0:03:01.4]}
7. Nge2 {[%clk 0:02:58.1]} 7... c5 {[%clk 0:03:01.3]} 8. O-O {[%clk 0:02:56.7]}
8... Nc6 {[%clk 0:03:00.7]} 9. a3 {[%clk 0:02:47.5]} 9... e5 {[%clk 0:03:00.6]}
10. d5 {[%clk 0:02:41.6]} 10... Ne7 {[%clk 0:03:00.1]} 11. b4 {[%clk 0:02:41.6]}
11... b6 {[%clk 0:02:59.6]} 12. Bb2 {[%clk 0:02:39.4]} 12... g5 {[%clk
0:02:57.8]} 13. f4 {[%clk 0:02:33.8]} 13... gxf4 {[%clk 0:02:57.4]} 14. exf4
{[%clk 0:02:29]} 14... e4 {[%clk 0:02:57.6]} 15. Qd2 {[%clk 0:02:23.5]} 15...
Qe8 {[%clk 0:02:54]} 16. Nd1 {[%clk 0:02:15.8]} 16... Qh5 {[%clk 0:02:50.6]} 17.
Ne3 {[%clk 0:02:15]} 17... Bd7 {[%clk 0:02:45.8]} 18. Bc3 {[%clk 0:01:55.1]}
18... Rf7 {[%clk 0:02:44.3]} 19. Kh1 {[%clk 0:01:39.2]} 19... Ng4 {[%clk
0:02:41.7]} 20. Nxg4 {[%clk 0:01:36.4]} 20... Qxg4 {[%clk 0:02:42.6]} 21. Ng1
{[%clk 0:01:33.4]} 21... h5 {[%clk 0:02:39.4]} 22. Nh3 {[%clk 0:01:22.2]} 22...
h4 {[%clk 0:02:13.3]} 23. Ng5 {[%clk 0:01:22.4]} 23... hxg3 {[%clk 0:02:00.8]}
24. h3 {[%clk 0:01:11.2]} 24... Qh4 {[%clk 0:01:59.7]} 25. Nxf7 {[%clk
0:01:08.9]} 25... Kxf7 {[%clk 0:01:59]} 26. Bxg7 {[%clk 0:01:08.4]} 26... Kxg7
{[%clk 0:01:58.8]} 27. Qc3+ {[%clk 0:01:08.1]} 27... Kf7 {[%clk 0:01:54.8]} 28.
bxc5 {[%clk 0:00:57.5]} 28... bxc5 {[%clk 0:01:53.5]} 29. Rab1 {[%clk 0:00:54]}
29... Ng6 {[%clk 0:01:37]} 30. Rb3 {[%clk 0:00:41.3]} 30... Nxf4 {[%clk
0:01:23.9]} 31. Qxg3 {[%clk 0:00:40.2]} 31... Qxg3 {[%clk 0:01:23.5]} 32. Rxg3
{[%clk 0:00:40.7]} 32... Ne2 {[%clk 0:01:15]} 33. Re3 {[%clk 0:00:38.1]} 33...
Nd4 {[%clk 0:01:04.1]} 34. Bxe4 {[%clk 0:00:35.8]} 34... Kf6 {[%clk 0:01:01.6]}
35. Bg2 {[%clk 0:00:31.7]} 35... Rb8 {[%clk 0:01:01]} 36. h4 {[%clk 0:00:30.7]}
36... Rh8 {[%clk 0:00:58.7]} 37. Rh3 {[%clk 0:00:26.1]} 37... f4 {[%clk
0:00:54]} 38. h5 {[%clk 0:00:26.7]} 38... Bxh3 {[%clk 0:00:53.8]} 39. Bxh3
{[%clk 0:00:26.2]} 39... Rxh5 {[%clk 0:00:54.3]} 40. Kg2 {[%clk 0:00:12.5]}
40... Rg5+ {[%clk 0:00:52.4]} 41. Kf2 {[%clk 0:00:12.1]} 41... Ke5 {[%clk
0:00:52.4]} 42. Re1+ {[%clk 0:00:10.8]} 42... Kf6 {[%clk 0:00:52.1]} 43. Rb1
{[%clk 0:00:05.3]} 43... Rg3 {[%clk 0:00:51.8]} 44. Bc8 {[%clk 0:00:03.8]} 44...
Rxa3 {[%clk 0:00:51.9]} 45. Rb7 {[%clk 0:00:04.4]} 45... f3 {[%clk 0:00:50.7]}
46. Rd7 {[%clk 0:00:03.9]} 46... Ra2+ {[%clk 0:00:51]} 47. Kf1 {[%clk
0:00:03.4]} 47... Ke5 {[%clk 0:00:50.8]} 48. Re7+ {[%clk 0:00:03.5]} 48... Kf4
{[%clk 0:00:51.2]} 49. Rf7+ {[%clk 0:00:04]} 49... Ke3 {[%clk 0:00:51.5]} 50.
Re7+ {[%clk 0:00:03.8]} 50... Kd3 {[%clk 0:00:52]} 51. Rf7 {[%clk 0:00:02.5]}
51... Kxc4 {[%clk 0:00:49.1]} 52. Bg4 {[%clk 0:00:00.7]} 52... Kxd5 {[%clk
0:00:46.9]} 53. Bxf3+ {[%clk 0:00:01.6]} 53... Nxf3 {[%clk 0:00:47]} 54. Rxf3
{[%clk 0:00:02.5]} 54... a5 {[%clk 0:00:46.9]} 55. Rf7 {[%clk 0:00:03.4]} 55...
a4 {[%clk 0:00:47]} 56. Ra7 {[%clk 0:00:04]} 56... a3 {[%clk 0:00:47]} 57. Ke1
{[%clk 0:00:04.9]} 57... Kd4 {[%clk 0:00:47.2]} 0-1

[Event "Late-Titled-Tuesday-Blitz-May-14-2024"]
[Site "Chess.com"]
[Date "2024.05.14"]
[Round "3"]
[White "MatthewG-p4p"]
[Black "GiorgianBarbosa"]
[Result "1-0"]
[WhiteElo "2833"]
[BlackElo "2526"]
[TimeControl "180+1"]
[EndTime "14:29:51 PDT"]
[Termination "MatthewG-p4p won by checkmate"]

1. f4 {[%clk 0:03:00.9]} 1... g6 {[%clk 0:02:59]} 2. Nf3 {[%clk 0:02:59.3]} 2...
Bg7 {[%clk 0:02:59.9]} 3. g3 {[%clk 0:03:00]} 3... c5 {[%clk 0:03:00.4]} 4. Bg2
{[%clk 0:03:00.9]} 4... e6 {[%clk 0:03:01.2]} 5. O-O {[%clk 0:03:01.8]} 5... Ne7
{[%clk 0:03:01.3]} 6. d3 {[%clk 0:03:02.4]} 6... O-O {[%clk 0:03:02.2]} 7. Nc3
{[%clk 0:03:03.1]} 7... Nbc6 {[%clk 0:03:01.8]} 8. e4 {[%clk 0:03:03.9]} 8...
Rb8 {[%clk 0:03:02]} 9. a4 {[%clk 0:03:03.8]} 9... d6 {[%clk 0:03:02.1]} 10. h3
{[%clk 0:03:04.5]} 10... a6 {[%clk 0:03:02.4]} 11. g4 {[%clk 0:03:05.1]} 11...
f5 {[%clk 0:03:02.3]} 12. Ne2 {[%clk 0:03:05.8]} 12... e5 {[%clk 0:02:56.5]} 13.
exf5 {[%clk 0:02:35.6]} 13... gxf5 {[%clk 0:02:53.6]} 14. g5 {[%clk 0:02:35.9]}
14... e4 {[%clk 0:02:46.9]} 15. dxe4 {[%clk 0:01:55.2]} 15... fxe4 {[%clk
0:02:47.8]} 16. Nh2 {[%clk 0:01:56.1]} 16... d5 {[%clk 0:02:44]} 17. c4 {[%clk
0:01:54.1]} 17... Bf5 {[%clk 0:02:27.6]} 18. Ng3 {[%clk 0:01:52.9]} 18... Bd4+
{[%clk 0:01:59.6]} 19. Kh1 {[%clk 0:01:52.8]} 19... Nb4 {[%clk 0:01:48.7]} 20.
cxd5 {[%clk 0:01:50.4]} 20... Qxd5 {[%clk 0:01:48.2]} 21. Ng4 {[%clk 0:01:48]}
21... Rbe8 {[%clk 0:01:22.9]} 22. Nh6+ {[%clk 0:01:41.3]} 22... Kh8 {[%clk
0:01:21.1]} 23. Ra3 {[%clk 0:01:23.4]} 23... Qe6 {[%clk 0:01:11.7]} 24. Be3
{[%clk 0:01:10.5]} 24... Rd8 {[%clk 0:00:59.2]} 25. Qe2 {[%clk 0:01:06]} 25...
Bxh3 {[%clk 0:00:55.9]} 26. Bxd4+ {[%clk 0:01:00.9]} 26... Rxd4 {[%clk
0:00:49.8]} 27. Bxh3 {[%clk 0:00:39.6]} 27... Qxh3+ {[%clk 0:00:50.7]} 28. Qh2
{[%clk 0:00:40.3]} 28... Qxh2+ {[%clk 0:00:47.4]} 29. Kxh2 {[%clk 0:00:41.2]}
29... Nd3 {[%clk 0:00:34.3]} 30. f5 {[%clk 0:00:37.6]} 30... e3 {[%clk
0:00:33.1]} 31. f6 {[%clk 0:00:33.6]} 31... Nd5 {[%clk 0:00:32.9]} 32. Nhf5
{[%clk 0:00:31.8]} 32... Rg4 {[%clk 0:00:28.8]} 33. Rxd3 {[%clk 0:00:31]} 33...
Rxg5 {[%clk 0:00:28.8]} 34. Rxd5 {[%clk 0:00:31.1]} 34... e2 {[%clk 0:00:25.6]}
35. Nxe2 {[%clk 0:00:27.5]} 35... h5 {[%clk 0:00:23]} 36. Ne7 {[%clk 0:00:23.8]}
36... Rxd5 {[%clk 0:00:19.9]} 37. Nxd5 {[%clk 0:00:24.7]} 37... b5 {[%clk
0:00:20.5]} 38. axb5 {[%clk 0:00:23.8]} 38... axb5 {[%clk 0:00:21.4]} 39. Rf5
{[%clk 0:00:23.9]} 39... Kh7 {[%clk 0:00:18.7]} 40. Nef4 {[%clk 0:00:23.9]}
40... b4 {[%clk 0:00:14.7]} 41. Rxh5+ {[%clk 0:00:24]} 41... Kg8 {[%clk
0:00:14.2]} 42. Rg5+ {[%clk 0:00:24.7]} 42... Kf7 {[%clk 0:00:14.7]} 43. Rg7+
{[%clk 0:00:24.9]} 43... Ke8 {[%clk 0:00:15.1]} 44. Re7+ {[%clk 0:00:23.5]}
44... Kd8 {[%clk 0:00:16]} 45. Ne6+ {[%clk 0:00:23]} 45... Kc8 {[%clk
0:00:16.6]} 46. Nb6+ {[%clk 0:00:10.2]} 46... Kb8 {[%clk 0:00:16.6]} 47. Nd7+
{[%clk 0:00:10.5]} 47... Ka8 {[%clk 0:00:16.2]} 48. Ndxf8 {[%clk 0:00:08.1]}
48... c4 {[%clk 0:00:15.3]} 49. Ng6 {[%clk 0:00:09]} 49... c3 {[%clk 0:00:16.1]}
50. f7 {[%clk 0:00:09.9]} 50... cxb2 {[%clk 0:00:16]} 51. f8=Q# {[%clk
0:00:10.8]} 1-0

[Event "Late-Titled-Tuesday-Blitz-May-14-2024"]
[Site "Chess.com"]
[Date "2024.05.14"]
[Round "3"]
[White "joksijoksi"]
[Black "glebus008"]
[Result "1/2-1/2"]
[WhiteElo "2513"]
[BlackElo "2375"]
[TimeControl "180+1"]
[EndTime "14:29:52 PDT"]
[Termination "Game drawn by repetition"]

1. d4 {[%clk 0:03:00]} 1... d5 {[%clk 0:02:59.4]} 2. c4 {[%clk 0:02:59.3]} 2...
e6 {[%clk 0:02:58.9]} 3. g3 {[%clk 0:02:58.8]} 3... Nf6 {[%clk 0:02:57.7]} 4.
Bg2 {[%clk 0:02:58.7]} 4... Be7 {[%clk 0:02:57.9]} 5. Nf3 {[%clk 0:02:58.9]}
5... O-O {[%clk 0:02:58.2]} 6. O-O {[%clk 0:02:59.1]} 6... dxc4 {[%clk
0:02:58.7]} 7. Nc3 {[%clk 0:02:56.8]} 7... c5 {[%clk 0:02:52.5]} 8. e3 {[%clk
0:02:44.5]} 8... Nc6 {[%clk 0:02:50.9]} 9. Qe2 {[%clk 0:02:34]} 9... cxd4 {[%clk
0:02:49.3]} 10. exd4 {[%clk 0:02:34.9]} 10... Nxd4 {[%clk 0:02:49.1]} 11. Nxd4
{[%clk 0:02:31.7]} 11... Qxd4 {[%clk 0:02:50]} 12. Rd1 {[%clk 0:02:29.4]} 12...
Qg4 {[%clk 0:02:38.3]} 13. Bf3 {[%clk 0:02:23.2]} 13... Qh3 {[%clk 0:02:36.1]}
14. Qxc4 {[%clk 0:02:20.5]} 14... e5 {[%clk 0:02:30.3]} 15. Be3 {[%clk
0:02:11.5]} 15... Ng4 {[%clk 0:02:19.5]} 16. Bxg4 {[%clk 0:02:10.6]} 16... Bxg4
{[%clk 0:02:19.9]} 17. Qf1 {[%clk 0:02:11.2]} 17... Qh5 {[%clk 0:02:10.8]} 18.
Rd5 {[%clk 0:02:07.2]} 18... Rad8 {[%clk 0:01:49.6]} 19. Bxa7 {[%clk 0:02:00.4]}
19... Bf3 {[%clk 0:01:42.3]} 20. Rd3 {[%clk 0:01:46.5]} 20... Rxd3 {[%clk
0:01:22.1]} 21. Qxd3 {[%clk 0:01:47.4]} 21... Rd8 {[%clk 0:01:21.6]} 22. Qf1
{[%clk 0:01:40.8]} 22... Rd2 {[%clk 0:01:08.1]} 23. Be3 {[%clk 0:01:28.7]} 23...
Rxb2 {[%clk 0:01:06.4]} 24. Rb1 {[%clk 0:01:24.5]} 24... Rxb1 {[%clk 0:01:03.7]}
25. Nxb1 {[%clk 0:01:25]} 25... e4 {[%clk 0:00:55.3]} 26. Nd2 {[%clk 0:01:23.8]}
26... Qd5 {[%clk 0:00:43.7]} 27. Qc1 {[%clk 0:01:12.6]} 27... h5 {[%clk
0:00:34.8]} 28. a4 {[%clk 0:01:08]} 28... h4 {[%clk 0:00:27.6]} 29. Qf1 {[%clk
0:00:56.7]} 29... hxg3 {[%clk 0:00:25.3]} 30. fxg3 {[%clk 0:00:46.4]} 30... Bc5
{[%clk 0:00:25.3]} 31. Qf2 {[%clk 0:00:46.8]} 31... Bxe3 {[%clk 0:00:20]} 32.
Qxe3 {[%clk 0:00:47.7]} 32... Qc6 {[%clk 0:00:16.5]} 33. a5 {[%clk 0:00:40.5]}
33... Qc1+ {[%clk 0:00:15.2]} 34. Kf2 {[%clk 0:00:41.1]} 34... Qh1 {[%clk
0:00:13.8]} 35. Nf1 {[%clk 0:00:41.7]} 35... Qg2+ {[%clk 0:00:13.2]} 36. Ke1
{[%clk 0:00:42.4]} 36... Qa2 {[%clk 0:00:11.3]} 37. Qd2 {[%clk 0:00:38.2]} 37...
Qc4 {[%clk 0:00:08.7]} 38. Ne3 {[%clk 0:00:33.1]} 38... Qb5 {[%clk 0:00:06.3]}
39. Kf2 {[%clk 0:00:27.2]} 39... g6 {[%clk 0:00:06.3]} 40. h4 {[%clk 0:00:23.4]}
40... Qb1 {[%clk 0:00:06.4]} 41. Nf1 {[%clk 0:00:17.1]} 41... Qb5 {[%clk
0:00:06.1]} 42. Ne3 {[%clk 0:00:17.1]} 42... Qb1 {[%clk 0:00:06.1]} 43. Nf1
{[%clk 0:00:16.4]} 43... Qb5 {[%clk 0:00:06.1]} 44. Kg1 {[%clk 0:00:14.4]} 44...
Qc4 {[%clk 0:00:05.2]} 45. Ne3 {[%clk 0:00:13.7]} 45... Qb5 {[%clk 0:00:05.5]}
46. Nf1 {[%clk 0:00:13.2]} 46... Qb1 {[%clk 0:00:05.6]} 47. Kf2 {[%clk
0:00:11.4]} 1/2-1/2

[Event "Late-Titled-Tuesday-Blitz-May-14-2024"]
[Site "Chess.com"]
[Date "2024.05.14"]
[Round "3"]
[White "Bastiandash"]
[Black "rasmussvane"]
[Result "1/2-1/2"]
[WhiteElo "2706"]
[BlackElo "2974"]
[TimeControl "180+1"]
[EndTime "14:29:53 PDT"]
[Termination "Game drawn - insufficient material"]

1. e4 {[%clk 0:03:00.9]} 1... c6 {[%clk 0:02:59.3]} 2. d4 {[%clk 0:02:59.5]}
2... d5 {[%clk 0:03:00.2]} 3. exd5 {[%clk 0:03:00.3]} 3... cxd5 {[%clk
0:03:01.1]} 4. Bd3 {[%clk 0:03:00.8]} 4... Nc6 {[%clk 0:02:59.9]} 5. c3 {[%clk
0:03:00.3]} 5... Nf6 {[%clk 0:02:57.6]} 6. h3 {[%clk 0:02:52.1]} 6... g6 {[%clk
0:02:53.9]} 7. Nf3 {[%clk 0:02:50.2]} 7... Bf5 {[%clk 0:02:51.8]} 8. O-O {[%clk
0:02:50.4]} 8... e6 {[%clk 0:02:49.8]} 9. Re1 {[%clk 0:02:41.6]} 9... Bd6 {[%clk
0:02:44.3]} 10. Bg5 {[%clk 0:02:38.5]} 10... h6 {[%clk 0:02:44]} 11. Bh4 {[%clk
0:02:22]} 11... Bxd3 {[%clk 0:02:39.5]} 12. Qxd3 {[%clk 0:02:22.9]} 12... g5
{[%clk 0:02:40]} 13. Bg3 {[%clk 0:02:17.3]} 13... Bxg3 {[%clk 0:02:34.7]} 14.
fxg3 {[%clk 0:02:18.2]} 14... Ne4 {[%clk 0:02:35.4]} 15. Nfd2 {[%clk 0:02:16.8]}
15... f5 {[%clk 0:02:32.7]} 16. Nxe4 {[%clk 0:02:16.7]} 16... fxe4 {[%clk
0:02:29.9]} 17. Qe2 {[%clk 0:02:14.8]} 17... O-O {[%clk 0:02:26.6]} 18. Nd2
{[%clk 0:02:13.3]} 18... Qf6 {[%clk 0:02:16.7]} 19. Rf1 {[%clk 0:02:05.5]} 19...
Qg6 {[%clk 0:02:13]} 20. Rxf8+ {[%clk 0:01:56.3]} 20... Rxf8 {[%clk 0:02:11.4]}
21. Rf1 {[%clk 0:01:57.2]} 21... Rxf1+ {[%clk 0:02:08]} 22. Nxf1 {[%clk
0:01:58.1]} 22... a6 {[%clk 0:01:47.7]} 23. Ne3 {[%clk 0:01:54]} 23... h5 {[%clk
0:01:48]} 24. g4 {[%clk 0:01:51.9]} 24... h4 {[%clk 0:01:46.7]} 25. Qf2 {[%clk
0:01:51.7]} 25... Kg7 {[%clk 0:01:43.1]} 26. g3 {[%clk 0:01:51.8]} 26... hxg3
{[%clk 0:01:35.6]} 27. Qxg3 {[%clk 0:01:52.7]} 27... Qf7 {[%clk 0:01:35.9]} 28.
Kg2 {[%clk 0:01:23.1]} 28... Qf4 {[%clk 0:01:04.7]} 29. h4 {[%clk 0:01:15.2]}
29... Kg6 {[%clk 0:01:04.5]} 30. hxg5 {[%clk 0:00:40.6]} 30... Kxg5 {[%clk
0:01:02.8]} 31. Kh3 {[%clk 0:00:41]} 31... b5 {[%clk 0:00:43.5]} 32. Ng2 {[%clk
0:00:31.4]} 32... Qf3 {[%clk 0:00:34.6]} 33. Qxf3 {[%clk 0:00:08.2]} 33... exf3
{[%clk 0:00:34.6]} 34. Nh4 {[%clk 0:00:08.8]} 34... Kf4 {[%clk 0:00:28.9]} 35.
g5 {[%clk 0:00:08.8]} 35... Kxg5 {[%clk 0:00:14.3]} 36. Nxf3+ {[%clk 0:00:08.9]}
36... Kf4 {[%clk 0:00:14.6]} 37. Kg2 {[%clk 0:00:08.8]} 37... Ke3 {[%clk
0:00:13.6]} 38. Ng5 {[%clk 0:00:08.7]} 38... Nd8 {[%clk 0:00:14.1]} 39. Kg3
{[%clk 0:00:07.2]} 39... Kd2 {[%clk 0:00:12.9]} 40. Kf4 {[%clk 0:00:07.4]} 40...
Kc2 {[%clk 0:00:13.4]} 41. Ke5 {[%clk 0:00:07.5]} 41... Kxb2 {[%clk 0:00:13.9]}
42. Nxe6 {[%clk 0:00:08.1]} 42... Nxe6 {[%clk 0:00:11]} 43. Kxe6 {[%clk
0:00:09]} 43... Kxc3 {[%clk 0:00:04.2]} 44. Kxd5 {[%clk 0:00:09.4]} 44... b4
{[%clk 0:00:04.5]} 45. Kc5 {[%clk 0:00:08.6]} 45... a5 {[%clk 0:00:04.9]} 46. d5
{[%clk 0:00:09.1]} 46... a4 {[%clk 0:00:05.5]} 47. d6 {[%clk 0:00:09.4]} 47...
b3 {[%clk 0:00:06.1]} 48. axb3 {[%clk 0:00:10.3]} 48... axb3 {[%clk 0:00:07]}
49. d7 {[%clk 0:00:10.9]} 49... b2 {[%clk 0:00:07.3]} 50. d8=Q {[%clk
0:00:11.2]} 50... b1=Q {[%clk 0:00:07.9]} 51. Qd4+ {[%clk 0:00:11.7]} 51... Kc2
{[%clk 0:00:08]} 52. Qe4+ {[%clk 0:00:11.7]} 52... Kb2 {[%clk 0:00:08.1]} 53.
Qxb1+ {[%clk 0:00:11.2]} 53... Kxb1 {[%clk 0:00:09]} 1/2-1/2

[Event "Late-Titled-Tuesday-Blitz-May-14-2024"]
[Site "Chess.com"]
[Date "2024.05.14"]
[Round "3"]
[White "schachlana"]
[Black "Puzzlebot_1294"]
[Result "0-1"]
[WhiteElo "2335"]
[BlackElo "2642"]
[TimeControl "180+1"]
[EndTime "14:29:54 PDT"]
[Termination "Puzzlebot_1294 won by resignation"]

1. e4 {[%clk 0:02:58.8]} 1... e5 {[%clk 0:02:59.4]} 2. Nf3 {[%clk 0:02:58.6]}
2... Nc6 {[%clk 0:02:58.6]} 3. d4 {[%clk 0:02:59.2]} 3... exd4 {[%clk
0:02:58.2]} 4. Nxd4 {[%clk 0:03:00.1]} 4... Nf6 {[%clk 0:02:58]} 5. Nxc6 {[%clk
0:02:59.4]} 5... bxc6 {[%clk 0:02:58.9]} 6. Bd3 {[%clk 0:02:57.1]} 6... d5
{[%clk 0:02:57.6]} 7. Nd2 {[%clk 0:02:53]} 7... Bc5 {[%clk 0:02:53.4]} 8. O-O
{[%clk 0:02:52.3]} 8... O-O {[%clk 0:02:52.2]} 9. e5 {[%clk 0:02:51.1]} 9... Ng4
{[%clk 0:02:51.4]} 10. h3 {[%clk 0:02:47.4]} 10... Nxe5 {[%clk 0:02:40.1]} 11.
Bxh7+ {[%clk 0:02:46]} 11... Kxh7 {[%clk 0:02:40.7]} 12. Qh5+ {[%clk 0:02:46.4]}
12... Kg8 {[%clk 0:02:41.4]} 13. Qxe5 {[%clk 0:02:47.1]} 13... Bd6 {[%clk
0:02:42]} 14. Qe2 {[%clk 0:02:42]} 14... a5 {[%clk 0:02:40.5]} 15. Re1 {[%clk
0:02:35.3]} 15... Bf5 {[%clk 0:02:36.5]} 16. Nf3 {[%clk 0:02:28.3]} 16... Qd7
{[%clk 0:02:35.4]} 17. Be3 {[%clk 0:02:26.2]} 17... Rfe8 {[%clk 0:02:30.4]} 18.
Nd4 {[%clk 0:02:23.8]} 18... Bh7 {[%clk 0:02:25.8]} 19. Qd2 {[%clk 0:02:04.1]}
19... c5 {[%clk 0:02:12.9]} 20. Nf3 {[%clk 0:01:40.2]} 20... d4 {[%clk
0:02:09.3]} 21. Bg5 {[%clk 0:01:38.2]} 21... Be4 {[%clk 0:02:00.3]} 22. Nh2
{[%clk 0:01:14.4]} 22... Qf5 {[%clk 0:01:48.7]} 23. c3 {[%clk 0:01:07.8]} 23...
f6 {[%clk 0:01:24.5]} 24. Bh4 {[%clk 0:01:01.6]} 24... Bf4 {[%clk 0:01:25]} 25.
Qd1 {[%clk 0:00:52.6]} 25... Rad8 {[%clk 0:01:24.1]} 26. Qg4 {[%clk 0:00:48.8]}
26... Qxg4 {[%clk 0:01:17.7]} 27. Nxg4 {[%clk 0:00:48]} 27... dxc3 {[%clk
0:01:05.3]} 28. bxc3 {[%clk 0:00:48.9]} 28... Bd2 {[%clk 0:01:04.4]} 29. Red1
{[%clk 0:00:35.3]} 29... Bxc3 {[%clk 0:01:03.2]} 30. Rxd8 {[%clk 0:00:29.2]}
30... Rxd8 {[%clk 0:01:04.1]} 31. Rc1 {[%clk 0:00:29.5]} 31... Bd4 {[%clk
0:00:53.6]} 32. Ne3 {[%clk 0:00:28.2]} 32... Rb8 {[%clk 0:00:45.3]} 33. Bg3
{[%clk 0:00:26.4]} 33... Rb7 {[%clk 0:00:39]} 34. Nc4 {[%clk 0:00:21.3]} 34...
a4 {[%clk 0:00:37.4]} 35. a3 {[%clk 0:00:16.6]} 35... Bd3 {[%clk 0:00:31.8]} 36.
Na5 {[%clk 0:00:15.9]} 36... Rb5 {[%clk 0:00:30.6]} 37. Bxc7 {[%clk 0:00:15.5]}
37... Bb2 {[%clk 0:00:29.7]} 38. Rd1 {[%clk 0:00:13.5]} 38... c4 {[%clk
0:00:30.2]} 39. Bd8 {[%clk 0:00:07.1]} 39... Bxa3 {[%clk 0:00:26.4]} 40. Nc6
{[%clk 0:00:06.8]} 40... c3 {[%clk 0:00:23.4]} 41. Rxd3 {[%clk 0:00:02.9]} 41...
c2 {[%clk 0:00:23.5]} 42. Rc3 {[%clk 0:00:03.5]} 42... c1=Q+ {[%clk 0:00:18]}
43. Rxc1 {[%clk 0:00:03.9]} 43... Bxc1 {[%clk 0:00:18.1]} 44. Be7 {[%clk
0:00:04]} 44... Rb1 {[%clk 0:00:14.7]} 45. Kh2 {[%clk 0:00:03.3]} 45... Kf7
{[%clk 0:00:14.7]} 46. Bc5 {[%clk 0:00:02.5]} 46... Bf4+ {[%clk 0:00:15]} 47. g3
{[%clk 0:00:02.9]} 47... Rc1 {[%clk 0:00:15.3]} 48. Nd8+ {[%clk 0:00:02.6]}
48... Ke8 {[%clk 0:00:14.9]} 49. gxf4 {[%clk 0:00:03.1]} 49... Rxc5 {[%clk
0:00:14.5]} 50. Ne6 {[%clk 0:00:03.8]} 50... Ra5 {[%clk 0:00:14.1]} 51. Nxg7+
{[%clk 0:00:04.5]} 51... Kf7 {[%clk 0:00:14.5]} 52. Nh5 {[%clk 0:00:02.1]} 52...
Rxh5 {[%clk 0:00:13.7]} 0-1

[Event "Late-Titled-Tuesday-Blitz-May-14-2024"]
[Site "Chess.com"]
[Date "2024.05.14"]
[Round "3"]
[White "TigrVShlyape"]
[Black "Kira170"]
[Result "1-0"]
[WhiteElo "2958"]
[BlackElo "2755"]
[TimeControl "180+1"]
[EndTime "14:29:56 PDT"]
[Termination "TigrVShlyape won on time"]

1. e4 {[%clk 0:03:00.9]} 1... e6 {[%clk 0:02:58.3]} 2. d4 {[%clk 0:03:00.2]}
2... d5 {[%clk 0:02:58.2]} 3. Nc3 {[%clk 0:03:00.4]} 3... Nf6 {[%clk 0:02:56.9]}
4. e5 {[%clk 0:03:00.7]} 4... Nfd7 {[%clk 0:02:56.9]} 5. f4 {[%clk 0:03:01.2]}
5... c5 {[%clk 0:02:57.3]} 6. Nf3 {[%clk 0:03:01.8]} 6... Nc6 {[%clk 0:02:57.8]}
7. Ne2 {[%clk 0:03:02.3]} 7... Be7 {[%clk 0:02:53.5]} 8. c3 {[%clk 0:03:01.8]}
8... O-O {[%clk 0:02:53.1]} 9. Be3 {[%clk 0:02:59.6]} 9... b5 {[%clk 0:02:51.6]}
10. dxc5 {[%clk 0:02:58.9]} 10... Nxc5 {[%clk 0:02:51.1]} 11. Ned4 {[%clk
0:02:59.1]} 11... Nxd4 {[%clk 0:02:50.4]} 12. Bxd4 {[%clk 0:02:50.5]} 12... Bd7
{[%clk 0:02:49.5]} 13. b4 {[%clk 0:02:35.3]} 13... Ne4 {[%clk 0:02:47.6]} 14.
Bd3 {[%clk 0:02:35.4]} 14... a5 {[%clk 0:02:47.2]} 15. a3 {[%clk 0:02:33.9]}
15... axb4 {[%clk 0:02:45.5]} 16. axb4 {[%clk 0:02:28.9]} 16... Qc7 {[%clk
0:02:33.8]} 17. O-O {[%clk 0:02:08.6]} 17... Ra4 {[%clk 0:02:03.6]} 18. Qc2
{[%clk 0:02:06]} 18... Rfa8 {[%clk 0:01:56.5]} 19. Rxa4 {[%clk 0:01:57.2]} 19...
Rxa4 {[%clk 0:01:56]} 20. Bxe4 {[%clk 0:01:43.8]} 20... dxe4 {[%clk 0:01:56.1]}
21. Qxe4 {[%clk 0:01:43.8]} 21... h6 {[%clk 0:01:37.1]} 22. h3 {[%clk
0:01:41.1]} 22... Bc6 {[%clk 0:01:36.2]} 23. Qd3 {[%clk 0:01:38]} 23... Qb7
{[%clk 0:01:36.2]} 24. Qe3 {[%clk 0:01:27.7]} 24... Qd7 {[%clk 0:00:54.5]} 25.
Rf2 {[%clk 0:01:05.8]} 25... Qd5 {[%clk 0:00:51.1]} 26. Kh2 {[%clk 0:01:04.3]}
26... Ra3 {[%clk 0:00:44.6]} 27. Qd2 {[%clk 0:00:54.6]} 27... Qc4 {[%clk
0:00:38.5]} 28. Qe2 {[%clk 0:00:29.2]} 28... Qxe2 {[%clk 0:00:37]} 29. Rxe2
{[%clk 0:00:29.2]} 29... Bd5 {[%clk 0:00:27.9]} 30. Kg3 {[%clk 0:00:28.1]} 30...
Kh7 {[%clk 0:00:26.8]} 31. h4 {[%clk 0:00:26.1]} 31... Bc4 {[%clk 0:00:22]} 32.
Rd2 {[%clk 0:00:24.9]} 32... Bd5 {[%clk 0:00:22.3]} 33. h5 {[%clk 0:00:24.7]}
33... g6 {[%clk 0:00:20.4]} 34. hxg6+ {[%clk 0:00:24.2]} 34... Kxg6 {[%clk
0:00:21.3]} 35. Kg4 {[%clk 0:00:18.9]} 35... h5+ {[%clk 0:00:20.2]} 36. Kg3
{[%clk 0:00:19.1]} 36... Kf5 {[%clk 0:00:20.4]} 37. Rf2 {[%clk 0:00:17.9]} 37...
Ke4 {[%clk 0:00:11.6]} 38. Ng5+ {[%clk 0:00:15.2]} 38... Kf5 {[%clk 0:00:11.8]}
39. Nxf7 {[%clk 0:00:13.7]} 39... Bxb4 {[%clk 0:00:12]} 40. Kh4 {[%clk
0:00:11.1]} 40... Be7+ {[%clk 0:00:11.4]} 41. Kxh5 {[%clk 0:00:11.4]} 41... Ra1
{[%clk 0:00:05.8]} 42. g4+ {[%clk 0:00:11.3]} 42... Ke4 {[%clk 0:00:06.2]} 43.
Ng5+ {[%clk 0:00:10.8]} 43... Kd3 {[%clk 0:00:06.2]} 44. f5 {[%clk 0:00:10.3]}
44... b4 {[%clk 0:00:05.2]} 45. f6 {[%clk 0:00:09.8]} 45... bxc3 {[%clk
0:00:02]} 46. Bxc3 {[%clk 0:00:08.8]} 46... Bc5 {[%clk 0:00:02.3]} 47. Bxa1
{[%clk 0:00:08.4]} 47... Bxf2 {[%clk 0:00:01.5]} 48. f7 {[%clk 0:00:08.8]} 48...
Bc5 {[%clk 0:00:01.7]} 49. Nh7 {[%clk 0:00:09.3]} 49... Bf3 {[%clk 0:00:01.4]}
50. f8=Q {[%clk 0:00:09.1]} 1-0